[Event "*** Titled Tuesday Blitz"]
[Site "Chess.com"]
[Date "2020.05.12"]
[Round "5"]
[White "ZeZacarias"]
[Black "Nara_Kh"]
[Result "0-1"]
[WhiteElo "2053"]
[BlackElo "2309"]
[TimeControl "180+1"]
[EndTime "10:55:39 PDT"]
[Termination "Nara_Kh won on time"]

1. d4 {[%clk 0:03:00.9]} 1... d6 {[%clk 0:02:58.1]} 2. c4 {[%clk 0:03:00.2]}
2... g6 {[%clk 0:02:57.6]} 3. Nc3 {[%clk 0:02:59.4]} 3... Bg7 {[%clk 0:02:57.5]}
4. e4 {[%clk 0:02:59.4]} 4... Nf6 {[%clk 0:02:57.6]} 5. Nf3 {[%clk 0:02:58.3]}
5... O-O {[%clk 0:02:58]} 6. h3 {[%clk 0:02:57.8]} 6... c5 {[%clk 0:02:50.2]} 7.
d5 {[%clk 0:02:57.2]} 7... a6 {[%clk 0:02:47.1]} 8. a4 {[%clk 0:02:53.5]} 8...
e6 {[%clk 0:02:47.1]} 9. Be2 {[%clk 0:02:53]} 9... exd5 {[%clk 0:02:45.7]} 10.
cxd5 {[%clk 0:02:52.6]} 10... Re8 {[%clk 0:02:42.9]} 11. Nd2 {[%clk 0:02:46.7]}
11... Nbd7 {[%clk 0:02:37.9]} 12. O-O {[%clk 0:02:45.3]} 12... Ne5 {[%clk
0:02:30.2]} 13. f4 {[%clk 0:02:36]} 13... Ned7 {[%clk 0:02:28.5]} 14. Qc2 {[%clk
0:02:32.5]} 14... b6 {[%clk 0:02:19.4]} 15. Nc4 {[%clk 0:02:22.7]} 15... Nf8
{[%clk 0:01:55.1]} 16. Bf3 {[%clk 0:02:14]} 16... Bb7 {[%clk 0:01:50.9]} 17. b3
{[%clk 0:01:54.1]} 17... Nh5 {[%clk 0:01:11]} 18. Bxh5 {[%clk 0:01:47.9]} 18...
gxh5 {[%clk 0:01:11.9]} 19. Bb2 {[%clk 0:01:47]} 19... Ng6 {[%clk 0:01:04.5]}
20. Rae1 {[%clk 0:01:41.5]} 20... h4 {[%clk 0:01:03.5]} 21. Nd1 {[%clk
0:00:52.6]} 21... b5 {[%clk 0:00:56.8]} 22. Bxg7 {[%clk 0:00:41.9]} 22... Kxg7
{[%clk 0:00:57.7]} 23. Nce3 {[%clk 0:00:37.4]} 23... Qf6 {[%clk 0:00:51.6]} 24.
Nf5+ {[%clk 0:00:33.1]} 24... Kh8 {[%clk 0:00:50.3]} 25. Kh1 {[%clk 0:00:29]}
25... Ne7 {[%clk 0:00:39.9]} 26. Nxe7 {[%clk 0:00:24.3]} 26... Rxe7 {[%clk
0:00:40.8]} 27. Ne3 {[%clk 0:00:20.9]} 27... Rg8 {[%clk 0:00:35.6]} 28. Ng4
{[%clk 0:00:20.1]} 28... Qg7 {[%clk 0:00:33]} 29. e5 {[%clk 0:00:15.4]} 29...
Bxd5 {[%clk 0:00:30.3]} 30. exd6 {[%clk 0:00:13.4]} 30... Rxe1 {[%clk
0:00:27.7]} 31. Rxe1 {[%clk 0:00:13.9]} 31... h5 {[%clk 0:00:28.1]} 32. Ne3
{[%clk 0:00:13.3]} 32... Bc6 {[%clk 0:00:26.4]} 33. f5 {[%clk 0:00:05.1]} 33...
Qe5 {[%clk 0:00:22.5]} 34. Qd2 {[%clk 0:00:04.4]} 34... Re8 {[%clk 0:00:20.3]}
35. Nc2 {[%clk 0:00:02.2]} 35... Bxg2+ {[%clk 0:00:16.3]} 36. Kxg2 {[%clk
0:00:01.4]} 36... Rg8+ {[%clk 0:00:16.5]} 0-1

[Event "*** Titled Tuesday Blitz"]
[Site "Chess.com"]
[Date "2020.05.12"]
[Round "5"]
[White "sergeikim"]
[Black "Escanor89"]
[Result "1-0"]
[WhiteElo "2424"]
[BlackElo "2560"]
[TimeControl "180+1"]
[EndTime "10:55:40 PDT"]
[Termination "sergeikim won on time"]

1. d4 {[%clk 0:03:00.9]} 1... Nf6 {[%clk 0:02:59.4]} 2. c4 {[%clk 0:03:00.7]}
2... g6 {[%clk 0:02:59.3]} 3. Nc3 {[%clk 0:03:00.5]} 3... Bg7 {[%clk 0:02:59.3]}
4. e4 {[%clk 0:03:00.2]} 4... d6 {[%clk 0:02:59.3]} 5. Nge2 {[%clk 0:03:00.1]}
5... O-O {[%clk 0:02:57.1]} 6. Ng3 {[%clk 0:02:59.9]} 6... c5 {[%clk 0:02:55.5]}
7. d5 {[%clk 0:03:00]} 7... e6 {[%clk 0:02:55.6]} 8. Be2 {[%clk 0:02:59.8]} 8...
exd5 {[%clk 0:02:55]} 9. cxd5 {[%clk 0:03:00.7]} 9... a6 {[%clk 0:02:55.1]} 10.
a4 {[%clk 0:02:59.6]} 10... Nbd7 {[%clk 0:02:54.1]} 11. O-O {[%clk 0:02:59.5]}
11... Re8 {[%clk 0:02:54.1]} 12. Bf4 {[%clk 0:02:59]} 12... Ne5 {[%clk
0:02:50.6]} 13. Qd2 {[%clk 0:02:58.9]} 13... Rb8 {[%clk 0:02:48.2]} 14. Bh6
{[%clk 0:02:57.5]} 14... Bh8 {[%clk 0:02:42.3]} 15. h3 {[%clk 0:02:56.6]} 15...
Ned7 {[%clk 0:02:30.9]} 16. f4 {[%clk 0:02:52.1]} 16... Qa5 {[%clk 0:02:25.9]}
17. e5 {[%clk 0:02:47.5]} 17... dxe5 {[%clk 0:02:22.9]} 18. f5 {[%clk
0:02:46.6]} 18... Qb4 {[%clk 0:02:14.5]} 19. Kh2 {[%clk 0:02:33.3]} 19... Qd4
{[%clk 0:02:08.6]} 20. Qg5 {[%clk 0:02:32.1]} 20... e4 {[%clk 0:01:58.5]} 21.
Rad1 {[%clk 0:02:00]} 21... Qe5 {[%clk 0:01:57]} 22. d6 {[%clk 0:01:59.6]} 22...
b6 {[%clk 0:01:35.2]} 23. Bc4 {[%clk 0:01:47.1]} 23... Nf8 {[%clk 0:01:09]} 24.
Nd5 {[%clk 0:01:10.1]} 24... b5 {[%clk 0:00:26.1]} 25. Ne7+ {[%clk 0:00:57.4]}
25... Rxe7 {[%clk 0:00:25]} 26. dxe7 {[%clk 0:00:58.3]} 26... Qxe7 {[%clk
0:00:24]} 27. fxg6 {[%clk 0:00:44.2]} 27... hxg6 {[%clk 0:00:21.1]} 28. axb5
{[%clk 0:00:23.3]} 28... axb5 {[%clk 0:00:20.6]} 29. Nh5 {[%clk 0:00:17.2]}
29... bxc4 {[%clk 0:00:13]} 30. Nxf6+ {[%clk 0:00:15.7]} 30... Bxf6 {[%clk
0:00:12]} 31. Rxf6 {[%clk 0:00:15.6]} 31... Be6 {[%clk 0:00:04.3]} 32. Bxf8
{[%clk 0:00:13.2]} 32... Kxf8 {[%clk 0:00:04]} 33. Rdf1 {[%clk 0:00:11.1]} 33...
Ke8 {[%clk 0:00:01.5]} 34. Qe5 {[%clk 0:00:09.3]} 1-0

[Event "*** Titled Tuesday Blitz"]
[Site "Chess.com"]
[Date "2020.05.12"]
[Round "5"]
[White "Klavdia_Nik"]
[Black "annamaja"]
[Result "0-1"]
[WhiteElo "2076"]
[BlackElo "2312"]
[TimeControl "180+1"]
[EndTime "10:55:40 PDT"]
[Termination "annamaja won on time"]

1. Nf3 {[%clk 0:03:00.9]} 1... Nf6 {[%clk 0:02:59]} 2. c4 {[%clk 0:03:01.2]}
2... e6 {[%clk 0:02:57.8]} 3. b3 {[%clk 0:03:01.1]} 3... Be7 {[%clk 0:02:57.6]}
4. Bb2 {[%clk 0:03:01.5]} 4... O-O {[%clk 0:02:58.3]} 5. g3 {[%clk 0:03:02]}
5... b6 {[%clk 0:02:58.8]} 6. Bg2 {[%clk 0:03:02.4]} 6... Bb7 {[%clk 0:02:59.4]}
7. O-O {[%clk 0:03:03]} 7... c5 {[%clk 0:02:59.8]} 8. d4 {[%clk 0:03:02]} 8...
d6 {[%clk 0:02:59.7]} 9. Nc3 {[%clk 0:03:00]} 9... Nbd7 {[%clk 0:02:59.9]} 10.
e3 {[%clk 0:02:54.8]} 10... Ne4 {[%clk 0:02:32.2]} 11. Nxe4 {[%clk 0:02:47.9]}
11... Bxe4 {[%clk 0:02:31.5]} 12. Qe2 {[%clk 0:02:34.7]} 12... Qc7 {[%clk
0:02:25.4]} 13. Rac1 {[%clk 0:02:30.9]} 13... Qb7 {[%clk 0:02:25.3]} 14. Rfd1
{[%clk 0:02:31.3]} 14... Nf6 {[%clk 0:02:15.2]} 15. Ne1 {[%clk 0:02:26.5]} 15...
Bxg2 {[%clk 0:02:12.7]} 16. Nxg2 {[%clk 0:02:26.7]} 16... Qe4 {[%clk 0:02:08.5]}
17. f3 {[%clk 0:02:22.8]} 17... Qg6 {[%clk 0:02:02.1]} 18. e4 {[%clk 0:02:14.5]}
18... cxd4 {[%clk 0:01:48.7]} 19. Bxd4 {[%clk 0:02:12.9]} 19... e5 {[%clk
0:01:48.8]} 20. Be3 {[%clk 0:02:07.1]} 20... Nd7 {[%clk 0:01:40.9]} 21. Rd2
{[%clk 0:01:56.3]} 21... f5 {[%clk 0:01:40.8]} 22. exf5 {[%clk 0:01:48.2]} 22...
Qxf5 {[%clk 0:01:41.7]} 23. f4 {[%clk 0:01:41.2]} 23... e4 {[%clk 0:01:36.4]}
24. Rd5 {[%clk 0:01:31.8]} 24... Qf7 {[%clk 0:01:28.7]} 25. Bd4 {[%clk
0:01:20.1]} 25... Rae8 {[%clk 0:01:00.4]} 26. Qxe4 {[%clk 0:00:56.9]} 26... Bf6
{[%clk 0:00:53.6]} 27. Qd3 {[%clk 0:00:56.7]} 27... Bxd4+ {[%clk 0:00:40.6]} 28.
Qxd4 {[%clk 0:00:47.1]} 28... Nf6 {[%clk 0:00:40.8]} 29. Rxd6 {[%clk 0:00:38.2]}
29... Re2 {[%clk 0:00:41.3]} 30. Rf1 {[%clk 0:00:20.2]} 30... Rxa2 {[%clk
0:00:39.5]} 31. Rd8 {[%clk 0:00:19.3]} 31... h6 {[%clk 0:00:33.8]} 32. Rxf8+
{[%clk 0:00:18.5]} 32... Qxf8 {[%clk 0:00:34.5]} 33. h3 {[%clk 0:00:16.4]} 33...
Qa8 {[%clk 0:00:33.1]} 34. Rf2 {[%clk 0:00:16.2]} 34... Ra3 {[%clk 0:00:29.6]}
35. b4 {[%clk 0:00:15]} 35... Rxg3 {[%clk 0:00:29.1]} 36. Kh2 {[%clk 0:00:12.9]}
36... Rf3 {[%clk 0:00:29]} 37. Rxf3 {[%clk 0:00:05.2]} 37... Qxf3 {[%clk
0:00:29.9]} 38. Qd8+ {[%clk 0:00:04.2]} 38... Kh7 {[%clk 0:00:29.8]} 39. Qe7
{[%clk 0:00:02.1]} 39... Ne4 {[%clk 0:00:26.2]} 0-1

[Event "*** Titled Tuesday Blitz"]
[Site "Chess.com"]
[Date "2020.05.12"]
[Round "5"]
[White "MateSchmate"]
[Black "albi1999"]
[Result "1-0"]
[WhiteElo "2420"]
[BlackElo "2546"]
[TimeControl "180+1"]
[EndTime "10:55:41 PDT"]
[Termination "MateSchmate won by resignation"]

1. e4 {[%clk 0:03:00.9]} 1... c5 {[%clk 0:02:58.6]} 2. Nf3 {[%clk 0:03:00.7]}
2... Nc6 {[%clk 0:02:51.2]} 3. d4 {[%clk 0:03:01]} 3... cxd4 {[%clk 0:02:48.9]}
4. Nxd4 {[%clk 0:03:01.9]} 4... Nf6 {[%clk 0:02:48.1]} 5. Nc3 {[%clk 0:03:01.7]}
5... d6 {[%clk 0:02:47.4]} 6. Bg5 {[%clk 0:03:01.7]} 6... e6 {[%clk 0:02:46.4]}
7. Be2 {[%clk 0:02:55.6]} 7... a6 {[%clk 0:02:44.1]} 8. O-O {[%clk 0:02:45.1]}
8... Be7 {[%clk 0:02:41]} 9. a4 {[%clk 0:02:30.1]} 9... O-O {[%clk 0:02:17.5]}
10. Kh1 {[%clk 0:02:19.3]} 10... h6 {[%clk 0:02:10]} 11. Be3 {[%clk 0:02:16.9]}
11... Bd7 {[%clk 0:02:06.8]} 12. f4 {[%clk 0:02:10.5]} 12... Rc8 {[%clk
0:02:05.6]} 13. Nb3 {[%clk 0:01:52.1]} 13... Qc7 {[%clk 0:02:02.8]} 14. g4
{[%clk 0:01:44.2]} 14... d5 {[%clk 0:01:58.4]} 15. e5 {[%clk 0:01:38.6]} 15...
Ne4 {[%clk 0:01:56.4]} 16. Nxe4 {[%clk 0:01:28.7]} 16... dxe4 {[%clk 0:01:57.3]}
17. c3 {[%clk 0:01:22.9]} 17... f6 {[%clk 0:01:51.4]} 18. exf6 {[%clk
0:01:17.4]} 18... Bxf6 {[%clk 0:01:52.3]} 19. Nc5 {[%clk 0:01:09.8]} 19... Rcd8
{[%clk 0:01:51.5]} 20. Nxd7 {[%clk 0:01:04.7]} 20... Rxd7 {[%clk 0:01:50.8]} 21.
Qb3 {[%clk 0:01:04.8]} 21... Re8 {[%clk 0:01:47.8]} 22. Rad1 {[%clk 0:01:04.9]}
22... Kh8 {[%clk 0:01:44.9]} 23. Qb6 {[%clk 0:00:58.6]} 23... Qxb6 {[%clk
0:01:40.5]} 24. Bxb6 {[%clk 0:00:59.5]} 24... Rxd1 {[%clk 0:01:40.8]} 25. Rxd1
{[%clk 0:01:00.4]} 25... Bd8 {[%clk 0:01:38.3]} 26. Be3 {[%clk 0:00:57.4]} 26...
Bc7 {[%clk 0:01:35.8]} 27. Rd7 {[%clk 0:00:56.6]} 27... Re7 {[%clk 0:01:35.1]}
28. Rxe7 {[%clk 0:00:52.6]} 28... Nxe7 {[%clk 0:01:36]} 29. c4 {[%clk
0:00:52.8]} 29... Ng6 {[%clk 0:01:34.9]} 30. f5 {[%clk 0:00:44.1]} 30... exf5
{[%clk 0:01:34.1]} 31. gxf5 {[%clk 0:00:45]} 31... Ne7 {[%clk 0:01:31.7]} 32. f6
{[%clk 0:00:42.9]} 32... gxf6 {[%clk 0:01:30.6]} 33. Bxh6 {[%clk 0:00:43]} 33...
Kh7 {[%clk 0:01:29.9]} 34. Bd2 {[%clk 0:00:41.5]} 34... Kg6 {[%clk 0:01:29.6]}
35. Kg2 {[%clk 0:00:40.1]} 35... f5 {[%clk 0:01:29.9]} 36. c5 {[%clk 0:00:36.1]}
36... f4 {[%clk 0:01:28.9]} 37. Bd1 {[%clk 0:00:32.6]} 37... f3+ {[%clk
0:01:24.7]} 38. Kg1 {[%clk 0:00:22]} 38... Be5 {[%clk 0:01:21.5]} 39. b4 {[%clk
0:00:20]} 39... Nd5 {[%clk 0:01:20.2]} 40. Bc2 {[%clk 0:00:19.2]} 40... Kf5
{[%clk 0:01:19.8]} 41. h4 {[%clk 0:00:18.6]} 41... Bf4 {[%clk 0:01:15.6]} 42.
Bxf4 {[%clk 0:00:11.7]} 42... Kxf4 {[%clk 0:01:16.5]} 43. b5 {[%clk 0:00:10.8]}
43... axb5 {[%clk 0:01:15.9]} 44. axb5 {[%clk 0:00:11.7]} 44... Kg3 {[%clk
0:01:16.1]} 45. Bxe4 {[%clk 0:00:05.5]} 45... f2+ {[%clk 0:01:16.2]} 46. Kh1
{[%clk 0:00:05]} 46... Ne3 {[%clk 0:01:17.1]} 47. Bd3 {[%clk 0:00:05]} 47...
Kxh4 {[%clk 0:01:06.1]} 48. c6 {[%clk 0:00:04.9]} 48... bxc6 {[%clk 0:01:07]}
49. b6 {[%clk 0:00:04.9]} 49... Nf5 {[%clk 0:00:46.3]} 50. b7 {[%clk 0:00:05.3]}
50... Kh3 {[%clk 0:00:44.3]} 51. Bxf5+ {[%clk 0:00:05]} 1-0

[Event "*** Titled Tuesday Blitz"]
[Site "Chess.com"]
[Date "2020.05.12"]
[Round "5"]
[White "Munkhzul_Davaakhuu"]
[Black "javirec"]
[Result "0-1"]
[WhiteElo "1896"]
[BlackElo "2284"]
[TimeControl "180+1"]
[EndTime "10:55:41 PDT"]
[Termination "javirec won on time"]

1. e4 {[%clk 0:03:00.9]} 1... c5 {[%clk 0:02:58.2]} 2. Nf3 {[%clk 0:03:00.7]}
2... e6 {[%clk 0:02:58.5]} 3. d4 {[%clk 0:03:01]} 3... cxd4 {[%clk 0:02:57.7]}
4. Nxd4 {[%clk 0:03:00.2]} 4... Nf6 {[%clk 0:02:57.3]} 5. Nc3 {[%clk 0:02:59.9]}
5... Nc6 {[%clk 0:02:56.4]} 6. Ndb5 {[%clk 0:02:55.5]} 6... Bb4 {[%clk
0:02:54.9]} 7. Bf4 {[%clk 0:02:52.5]} 7... Nxe4 {[%clk 0:02:50.7]} 8. Qf3 {[%clk
0:02:50.9]} 8... d5 {[%clk 0:02:50.1]} 9. Nc7+ {[%clk 0:02:45.2]} 9... Kf8
{[%clk 0:02:49.7]} 10. Nxa8 {[%clk 0:02:44.6]} 10... Qa5 {[%clk 0:02:46.2]} 11.
Bd2 {[%clk 0:02:06.7]} 11... Nxd2 {[%clk 0:02:43.7]} 12. Kxd2 {[%clk 0:02:05.4]}
12... d4 {[%clk 0:02:43.2]} 13. Be2 {[%clk 0:01:50.1]} 13... dxc3+ {[%clk
0:02:41.2]} 14. bxc3 {[%clk 0:01:50.4]} 14... Bc5 {[%clk 0:02:20.9]} 15. Rhd1
{[%clk 0:01:38.7]} 15... Ke7 {[%clk 0:02:15.8]} 16. Ke1 {[%clk 0:01:36.2]} 16...
Bd7 {[%clk 0:02:15.8]} 17. Rxd7+ {[%clk 0:01:01.2]} 17... Kxd7 {[%clk
0:02:14.4]} 18. Qxf7+ {[%clk 0:01:01.5]} 18... Kc8 {[%clk 0:01:53.9]} 19. Qxg7
{[%clk 0:00:31.1]} 19... Rf8 {[%clk 0:01:37.8]} 20. Rd1 {[%clk 0:00:06.6]} 20...
Bxf2+ {[%clk 0:01:19.8]} 21. Kf1 {[%clk 0:00:05.5]} 21... Bc5+ {[%clk
0:01:08.7]} 22. Bf3 {[%clk 0:00:05.3]} 22... Kb8 {[%clk 0:01:02.5]} 23. Rb1
{[%clk 0:00:04.8]} 23... Qa6+ {[%clk 0:00:42]} 24. Ke1 {[%clk 0:00:04.7]} 24...
Kxa8 {[%clk 0:00:33.1]} 25. Be2 {[%clk 0:00:04.5]} 25... Bf2+ {[%clk 0:00:14.7]}
26. Kf1 {[%clk 0:00:04.4]} 26... Bc5+ {[%clk 0:00:11.4]} 27. Ke1 {[%clk
0:00:04]} 27... b5 {[%clk 0:00:05.5]} 28. Bxb5 {[%clk 0:00:02.8]} 28... Qc8
{[%clk 0:00:04.6]} 29. Bxc6+ {[%clk 0:00:02.3]} 29... Qxc6 {[%clk 0:00:04.1]}
30. Qe5 {[%clk 0:00:01.4]} 30... Bd6 {[%clk 0:00:01.9]} 0-1

[Event "*** Titled Tuesday Blitz"]
[Site "Chess.com"]
[Date "2020.05.12"]
[Round "5"]
[White "EfrenRamos1"]
[Black "mariangie523"]
[Result "1-0"]
[WhiteElo "2199"]
[BlackElo "2039"]
[TimeControl "180+1"]
[EndTime "10:55:41 PDT"]
[Termination "EfrenRamos1 won on time"]

1. d4 {[%clk 0:03:00.9]} 1... Nf6 {[%clk 0:02:59]} 2. c4 {[%clk 0:02:56.3]} 2...
c5 {[%clk 0:02:58.6]} 3. Nf3 {[%clk 0:02:53]} 3... g6 {[%clk 0:02:56.9]} 4. Nc3
{[%clk 0:02:51.5]} 4... cxd4 {[%clk 0:02:56.4]} 5. Nxd4 {[%clk 0:02:50.2]} 5...
d5 {[%clk 0:02:45.4]} 6. cxd5 {[%clk 0:02:42.2]} 6... Nxd5 {[%clk 0:02:36.2]} 7.
Ndb5 {[%clk 0:02:36.7]} 7... Nxc3 {[%clk 0:02:25.1]} 8. Qxd8+ {[%clk 0:02:34]}
8... Kxd8 {[%clk 0:02:24.4]} 9. bxc3 {[%clk 0:02:32.1]} 9... a6 {[%clk
0:02:20.7]} 10. Nd4 {[%clk 0:02:27.5]} 10... e5 {[%clk 0:02:20.6]} 11. Nf3
{[%clk 0:02:26.1]} 11... Bg7 {[%clk 0:02:14.7]} 12. Be3 {[%clk 0:02:23.6]} 12...
Nc6 {[%clk 0:02:12]} 13. Bb6+ {[%clk 0:02:22.6]} 13... Ke7 {[%clk 0:02:08.3]}
14. O-O-O {[%clk 0:02:22.2]} 14... f5 {[%clk 0:02:00.9]} 15. e3 {[%clk
0:02:14.3]} 15... Be6 {[%clk 0:01:54.1]} 16. Kb2 {[%clk 0:02:10.9]} 16... Rac8
{[%clk 0:01:49.4]} 17. Ng5 {[%clk 0:02:10.2]} 17... Nb8 {[%clk 0:01:32.3]} 18.
Nxe6 {[%clk 0:02:08.6]} 18... Kxe6 {[%clk 0:01:32.7]} 19. Kb3 {[%clk 0:02:05.7]}
19... Nd7 {[%clk 0:01:31.6]} 20. Bc4+ {[%clk 0:01:54.8]} 20... Rxc4 {[%clk
0:01:26.4]} 21. Kxc4 {[%clk 0:01:51.7]} 21... Nxb6+ {[%clk 0:01:27.3]} 22. Kb3
{[%clk 0:01:50.8]} 22... Rc8 {[%clk 0:01:20.2]} 23. Rc1 {[%clk 0:01:31.5]} 23...
e4 {[%clk 0:01:16]} 24. c4 {[%clk 0:01:31.2]} 24... Rd8 {[%clk 0:01:10.5]} 25.
Rhd1 {[%clk 0:01:29.6]} 25... Nd7 {[%clk 0:00:51.2]} 26. Kb4 {[%clk 0:01:12]}
26... Bf8+ {[%clk 0:00:47.8]} 27. Kc3 {[%clk 0:01:06.9]} 27... Bg7+ {[%clk
0:00:45.4]} 28. Kb4 {[%clk 0:01:06.2]} 28... Bf8+ {[%clk 0:00:45.8]} 29. Kb3
{[%clk 0:00:43.8]} 29... Nc5+ {[%clk 0:00:44.1]} 30. Kc3 {[%clk 0:00:41.9]}
30... Bg7+ {[%clk 0:00:42.9]} 31. Kc2 {[%clk 0:00:41.5]} 31... Nd3 {[%clk
0:00:30.6]} 32. Rb1 {[%clk 0:00:40.4]} 32... Rd7 {[%clk 0:00:16.6]} 33. Rb6+
{[%clk 0:00:39.5]} 33... Ke7 {[%clk 0:00:14.7]} 34. f3 {[%clk 0:00:36.6]} 34...
Rc7 {[%clk 0:00:14.2]} 35. fxe4 {[%clk 0:00:27.2]} 35... fxe4 {[%clk 0:00:13.6]}
36. Kb3 {[%clk 0:00:24.1]} 36... Nc5+ {[%clk 0:00:09.1]} 37. Ka3 {[%clk
0:00:23.1]} 37... Nd3 {[%clk 0:00:06.6]} 38. Rf1 {[%clk 0:00:16.7]} 38... Rxc4
{[%clk 0:00:05.4]} 39. Rxb7+ {[%clk 0:00:16]} 39... Ke6 {[%clk 0:00:02.4]} 40.
Rxg7 {[%clk 0:00:16.9]} 1-0

[Event "*** Titled Tuesday Blitz"]
[Site "Chess.com"]
[Date "2020.05.12"]
[Round "5"]
[White "Chesswizard_2007"]
[Black "kasparicy"]
[Result "0-1"]
[WhiteElo "2568"]
[BlackElo "2325"]
[TimeControl "180+1"]
[EndTime "10:55:42 PDT"]
[Termination "kasparicy won by resignation"]

1. d4 {[%clk 0:02:57]} 1... Nf6 {[%clk 0:02:59.2]} 2. c4 {[%clk 0:02:31.1]} 2...
g6 {[%clk 0:02:58.2]} 3. f3 {[%clk 0:02:25]} 3... e5 {[%clk 0:02:57.3]} 4. dxe5
{[%clk 0:02:23.1]} 4... Nh5 {[%clk 0:02:57.3]} 5. Nh3 {[%clk 0:02:23.9]} 5... d6
{[%clk 0:02:54.2]} 6. Nc3 {[%clk 0:02:15]} 6... Nc6 {[%clk 0:02:53.7]} 7. exd6
{[%clk 0:02:13.5]} 7... Bxd6 {[%clk 0:02:52.2]} 8. Bg5 {[%clk 0:02:12.4]} 8...
f6 {[%clk 0:02:34.3]} 9. Be3 {[%clk 0:01:59.2]} 9... O-O {[%clk 0:02:32.5]} 10.
Qd5+ {[%clk 0:01:52.2]} 10... Kh8 {[%clk 0:02:30.6]} 11. O-O-O {[%clk
0:01:50.9]} 11... Qe7 {[%clk 0:02:24.9]} 12. Qd2 {[%clk 0:01:48.4]} 12... Be6
{[%clk 0:02:22.2]} 13. Bh6 {[%clk 0:01:43.5]} 13... Rfd8 {[%clk 0:02:17.6]} 14.
Nd5 {[%clk 0:01:40.2]} 14... Qf7 {[%clk 0:02:16.7]} 15. e4 {[%clk 0:01:39.7]}
15... Ne7 {[%clk 0:01:58.5]} 16. Bd3 {[%clk 0:01:36.7]} 16... c6 {[%clk
0:01:56.6]} 17. Nxe7 {[%clk 0:01:36.6]} 17... Bxe7 {[%clk 0:01:56.7]} 18. Qc2
{[%clk 0:01:28]} 18... b5 {[%clk 0:01:47.1]} 19. Be2 {[%clk 0:01:23.7]} 19...
bxc4 {[%clk 0:01:38.7]} 20. g4 {[%clk 0:01:22.7]} 20... Ng7 {[%clk 0:01:37.7]}
21. Nf4 {[%clk 0:01:21]} 21... c3 {[%clk 0:01:30.9]} 22. Qxc3 {[%clk 0:01:20.1]}
22... Bxa2 {[%clk 0:01:30.8]} 23. Rxd8+ {[%clk 0:01:18.9]} 23... Rxd8 {[%clk
0:01:30.2]} 24. Rd1 {[%clk 0:01:19.4]} 24... Rxd1+ {[%clk 0:01:15.7]} 25. Bxd1
{[%clk 0:01:20.3]} 25... c5 {[%clk 0:01:02.4]} 26. b3 {[%clk 0:01:10.1]} 26...
c4 {[%clk 0:01:02]} 27. Kb2 {[%clk 0:01:09.3]} 27... Bxb3 {[%clk 0:01:00.3]} 28.
Bxg7+ {[%clk 0:01:08.3]} 28... Kxg7 {[%clk 0:00:58.5]} 29. Bxb3 {[%clk
0:01:03.8]} 29... cxb3 {[%clk 0:00:58.8]} 30. Nd5 {[%clk 0:01:01]} 30... Bd6
{[%clk 0:00:53.6]} 31. Qxb3 {[%clk 0:00:59.2]} 31... Bxh2 {[%clk 0:00:52.9]} 32.
g5 {[%clk 0:00:56]} 32... Be5+ {[%clk 0:00:52.1]} 33. Kc2 {[%clk 0:00:50.8]}
33... fxg5 {[%clk 0:00:53]} 34. Qe3 {[%clk 0:00:46.2]} 34... Bf4 {[%clk
0:00:51.3]} 35. Qd4+ {[%clk 0:00:44.4]} 35... Kh6 {[%clk 0:00:48.2]} 36. Nf6
{[%clk 0:00:42.5]} 36... Qc7+ {[%clk 0:00:44.7]} 37. Kd3 {[%clk 0:00:37]} 37...
Qd6 {[%clk 0:00:34.7]} 38. Ng4+ {[%clk 0:00:28.5]} 38... Kh5 {[%clk 0:00:34.7]}
39. Nf6+ {[%clk 0:00:29.4]} 39... Kh4 {[%clk 0:00:34.6]} 40. Nd5 {[%clk
0:00:27]} 40... Qa3+ {[%clk 0:00:30.3]} 41. Kc2 {[%clk 0:00:18.8]} 41... Qa2+
{[%clk 0:00:28.7]} 42. Kd3 {[%clk 0:00:18.4]} 42... Qd2+ {[%clk 0:00:28]} 43.
Kc4 {[%clk 0:00:18.6]} 43... Qxd4+ {[%clk 0:00:28.2]} 44. Kxd4 {[%clk
0:00:19.5]} 44... Kg3 {[%clk 0:00:28.7]} 45. e5 {[%clk 0:00:18.5]} 45... Bxe5+
{[%clk 0:00:28.2]} 46. Kxe5 {[%clk 0:00:19.4]} 46... Kxf3 {[%clk 0:00:29.1]} 0-1

[Event "*** Titled Tuesday Blitz"]
[Site "Chess.com"]
[Date "2020.05.12"]
[Round "5"]
[White "chessdjw"]
[Black "LawrenceTrent"]
[Result "1-0"]
[WhiteElo "2704"]
[BlackElo "2532"]
[TimeControl "180+1"]
[EndTime "10:55:43 PDT"]
[Termination "chessdjw won by resignation"]

1. e4 {[%clk 0:03:00.9]} 1... c5 {[%clk 0:02:59.9]} 2. Nf3 {[%clk 0:03:00.8]}
2... d6 {[%clk 0:02:59.4]} 3. Bb5+ {[%clk 0:03:00.2]} 3... Nc6 {[%clk
0:02:55.9]} 4. O-O {[%clk 0:02:58.2]} 4... Bd7 {[%clk 0:02:55]} 5. c3 {[%clk
0:02:56.5]} 5... a6 {[%clk 0:02:52.1]} 6. Bc4 {[%clk 0:02:55.8]} 6... b5 {[%clk
0:02:50.1]} 7. Bb3 {[%clk 0:02:53.8]} 7... Nf6 {[%clk 0:02:48.8]} 8. Re1 {[%clk
0:02:53.4]} 8... g5 {[%clk 0:02:40.2]} 9. Nxg5 {[%clk 0:02:42.3]} 9... c4 {[%clk
0:02:40.1]} 10. Bc2 {[%clk 0:02:42.6]} 10... Rg8 {[%clk 0:02:40]} 11. d4 {[%clk
0:02:38.1]} 11... cxd3 {[%clk 0:02:37]} 12. Qxd3 {[%clk 0:02:15.9]} 12... Ne5
{[%clk 0:02:36.3]} 13. Qe3 {[%clk 0:02:00.6]} 13... h6 {[%clk 0:02:00.9]} 14.
Nf3 {[%clk 0:02:00]} 14... Nfg4 {[%clk 0:01:59.6]} 15. Qe2 {[%clk 0:01:48]}
15... Bg7 {[%clk 0:01:49.5]} 16. Nd4 {[%clk 0:01:44.3]} 16... e6 {[%clk
0:01:08.4]} 17. h3 {[%clk 0:01:37.5]} 17... Nf6 {[%clk 0:01:07]} 18. Bf4 {[%clk
0:01:29.6]} 18... Ng6 {[%clk 0:01:06.4]} 19. Bg3 {[%clk 0:01:25.2]} 19... Qb6
{[%clk 0:01:04.7]} 20. Nd2 {[%clk 0:01:21.9]} 20... Nh7 {[%clk 0:01:00.2]} 21.
N2f3 {[%clk 0:01:17]} 21... Ng5 {[%clk 0:00:59.3]} 22. Nxg5 {[%clk 0:01:17.1]}
22... hxg5 {[%clk 0:01:00.2]} 23. Rad1 {[%clk 0:01:16.6]} 23... Nf4 {[%clk
0:01:00.1]} 24. Qg4 {[%clk 0:01:11.7]} 24... Be5 {[%clk 0:00:59.3]} 25. Nf3
{[%clk 0:01:07.2]} 25... O-O-O {[%clk 0:00:55.1]} 26. Nxe5 {[%clk 0:01:06.5]}
26... dxe5 {[%clk 0:00:56]} 27. Kh2 {[%clk 0:00:55.9]} 27... f5 {[%clk
0:00:49.3]} 28. exf5 {[%clk 0:00:51.9]} 28... Rdf8 {[%clk 0:00:45.6]} 29. Rxe5
{[%clk 0:00:42.5]} 29... Bc6 {[%clk 0:00:28.4]} 30. fxe6 {[%clk 0:00:37.1]}
30... Re8 {[%clk 0:00:28.7]} 31. e7+ {[%clk 0:00:36.7]} 31... Kb7 {[%clk
0:00:27.9]} 32. Rd6 {[%clk 0:00:36.1]} 32... Qc7 {[%clk 0:00:27.3]} 33. Qd1
{[%clk 0:00:25]} 33... Rxe7 {[%clk 0:00:23.4]} 34. Be4 {[%clk 0:00:12.1]} 34...
Bxe4 {[%clk 0:00:21]} 35. Rxe7 {[%clk 0:00:11.4]} 35... Qxe7 {[%clk 0:00:17]}
36. Rd7+ {[%clk 0:00:11.7]} 36... Qxd7 {[%clk 0:00:17.1]} 37. Qxd7+ {[%clk
0:00:12.5]} 37... Kb6 {[%clk 0:00:18]} 38. Bxf4 {[%clk 0:00:12.7]} 1-0